bitfinex/quotes_BTCUSD_20240823
["timestamp","ask_amount","ask_price","bid_price","bid_amount"]
[1724417348859,1.61979126,61191.0,61190.0,0.102]
[1724417349066,1.62179126,61191.0,61190.0,0.102]
[1724417349414,1.60879126,61191.0,61190.0,0.101]
[1724417349658,1.93663626,61191.0,61190.0,0.101]
[1724417350216,2.03663626,61191.0,61190.0,0.101]
[1724417350389,2.03663626,61191.0,61190.0,0.102]
[1724417350390,2.05063626,61191.0,61190.0,0.102]
[1724417350593,2.03663626,61191.0,61190.0,0.101]
[1724417350802,2.23146309,61191.0,61190.0,0.101]
[1724417351026,2.24546309,61191.0,61190.0,0.102]
[1724417351177,2.23146309,61191.0,61190.0,0.101]
[1724417351387,2.23146309,61191.0,61190.0,0.096]
[1724417351588,2.24546309,61191.0,61190.0,0.097]
[1724417351962,2.23146309,61191.0,61190.0,0.096]
[1724417352160,2.23246309,61191.0,61190.0,0.096]
[1724417352560,2.55930809,61191.0,61190.0,0.096]
[1724417353514,2.54530809,61191.0,61190.0,0.095]
[1724417353805,2.54530809,61191.0,61151.0,0.467255]
[1724417353806,0.16351,61158.0,61157.0,0.002]
[1724417354008,0.0769,61164.0,61156.0,0.002]
[1724417354210,0.18915296,61158.0,61157.0,0.02125456]
[1724417354407,0.51617396,61158.0,61157.0,0.02125456]
[1724417354641,0.163521,61154.0,61151.0,0.002]
[1724417354843,0.163517,61156.0,61151.0,0.002]
[1724417355027,0.163519,61155.0,61151.0,0.002]
[1724417355224,0.02564296,61158.0,61152.0,0.02128196]
[1724417355225,0.163521,61154.0,61152.0,0.02128196]
[1724417355480,0.490572,61153.0,61152.0,0.02128196]
[1724417355930,0.163535,61149.0,61148.0,0.002]
[1724417356131,0.163537,61148.0,61147.0,0.002]
[1724417356333,0.490601,61150.0,61147.0,0.002]
[1724417356556,0.327067,61150.0,61141.0,0.163554]
[1724417356761,0.02564699,61148.0,61147.0,0.002]
[1724417356967,0.18918399,61148.0,61147.0,0.002]
[1724417357123,0.02564699,61148.0,61147.0,0.002]
[1724417357326,0.19018399,61148.0,61147.0,0.003]
[1724417357518,0.02564699,61148.0,61147.0,0.002]
[1724417357934,0.18918399,61148.0,61147.0,0.002]
[1724417358304,0.02564699,61148.0,61147.0,0.002]
[1724417358520,0.02664699,61148.0,61147.0,0.002]
[1724417358929,0.19018399,61148.0,61147.0,0.002]
[1724417359353,0.19018399,61148.0,61147.0,0.003]
[1724417359539,0.84433399,61148.0,61147.0,0.001]
[1724417359741,0.84333399,61148.0,61147.0,0.001]
[1724417360267,0.84433399,61148.0,61147.0,0.001]
[1724417361875,0.95253226,61148.0,61147.0,0.001]
[1724417364797,0.0003952,61207.0,61198.0,0.163402]
[1724417365014,0.0003952,61207.0,61192.0,0.0613]
[1724417365229,0.0003952,61207.0,61164.0,0.04825837]
[1724417365230,0.25612683,61202.0,61182.0,0.326893]
[1724417365441,0.163414,61195.0,61177.0,0.326919]
[1724417365645,0.19482683,61196.0,61174.0,0.0613]
[1724417365894,0.0769,61195.0,61177.0,0.002]
[1724417366096,0.240313,61195.0,61177.0,0.002]
[1724417366296,0.0769,61195.0,61181.0,0.163447]
[1724417366531,0.163417,61193.0,61179.0,0.163453]
[1724417366737,0.0769,61195.0,61180.0,0.163451]
[1724417366947,0.240313,61195.0,61180.0,0.163451]
[1724417367189,0.163415,61194.0,61180.0,0.163451]
[1724417367396,0.164415,61194.0,61180.0,0.163451]
[1724417367601,0.164415,61194.0,61182.0,0.163444]
[1724417367602,0.001,61194.0,61182.0,0.163444]
[1724417368015,0.001,61194.0,61180.0,0.163451]
[1724417368219,0.163419,61193.0,61179.0,0.163452]
[1724417368427,0.163419,61193.0,61180.0,0.16345]
[1724417368635,0.001,61194.0,61180.0,0.16345]
[1724417368847,0.006,61194.0,61177.0,0.163458]
[1724417369059,0.326844,61192.0,61175.0,0.002]
[1724417369268,0.163435,61187.0,61177.0,0.002]
[1724417369707,0.163435,61187.0,61177.0,0.163459]
[1724417369926,0.163435,61187.0,61175.0,0.002]
[1724417369927,0.163435,61187.0,61178.0,0.163457]
[1724417370146,0.326852,61190.0,61174.0,0.002]
[1724417370147,0.163438,61185.0,61174.0,0.002]
[1724417370364,0.163442,61184.0,61174.0,0.165467]
[1724417370584,0.163442,61184.0,61177.0,0.001]
[1724417370799,0.023,61194.0,61189.0,0.002]
[1724417371015,0.0744,61195.0,61184.0,0.28654856]
[1724417371232,0.002,61192.0,61189.0,0.31452669]
[1724417371451,0.002,61192.0,61191.0,0.490267]
[1724417371674,0.163362,61214.0,61206.0,0.163382]
[1724417371885,0.163357,61216.0,61206.0,0.163382]
[1724417372091,0.326704,61218.0,61206.0,0.163382]
[1724417372320,0.00112,61221.0,61206.0,0.816912]
[1724417372531,0.00012,61221.0,61206.0,1.80700667]
[1724417372951,0.00012,61221.0,61206.0,1.81374358]
[1724417373396,0.00012,61221.0,61218.0,1.54277969]
[1724417373677,0.00012,61221.0,61218.0,1.70978267]
[1724417373889,0.00012,61221.0,61218.0,1.80978267]
[1724417374095,0.00012,61221.0,61218.0,1.80678267]
[1724417374309,0.0002,61239.0,61238.0,0.816485]
[1724417374526,0.0002,61239.0,61219.0,0.0808]
[1724417374741,0.0002,61239.0,61224.0,0.326665]
[1724417374952,0.0002,61239.0,61219.0,0.1808]
[1724417374953,0.0002,61239.0,61234.0,0.326611]
[1724417375159,0.0002,61239.0,61237.0,0.163298]
[1724417375369,0.0002,61239.0,61219.0,0.18762525]
[1724417375575,0.0002,61239.0,61221.0,0.16400298]
[1724417375788,0.01761015,61238.0,61221.0,0.16400298]
[1724417375995,0.00162103,61237.0,61221.0,0.16400298]
[1724417376169,0.163319,61230.0,61221.0,0.16400298]
[1724417376398,0.01761015,61238.0,61221.0,0.16400298]
[1724417376618,0.023,61237.0,61223.0,0.163336]
[1724417376839,0.163317,61231.0,61221.0,0.16400298]
[1724417377040,0.186319,61230.0,61222.0,0.163338]
[1724417377247,0.186319,61230.0,61222.0,0.32734098]
[1724417377473,0.186319,61230.0,61222.0,0.16400298]
[1724417378491,0.0763,61229.0,61222.0,0.007]
[1724417378624,0.490011,61223.0,61222.0,0.007]
[1724417378823,0.839685,61223.0,61222.0,0.007]
[1724417379052,0.513011,61223.0,61222.0,0.007]
[1724417379256,0.023,61223.0,61222.0,0.17100298]
[1724417379452,0.023,61227.0,61222.0,0.007]
[1724417379680,0.163336,61224.0,61222.0,0.007]
[1724417379909,0.513011,61223.0,61222.0,0.007]
[1724417380092,0.186337,61223.0,61222.0,0.007]
[1724417380550,0.163349,61219.0,61211.0,0.163368]
[1724417380755,0.163354,61217.0,61212.0,0.1]
[1724417380961,0.023,61216.0,61212.0,0.1]
[1724417381422,0.163351,61218.0,61212.0,0.1]
[1724417381624,0.023,61217.0,61212.0,0.1]
[1724417381826,0.023,61219.0,61211.0,0.33000201]
[1724417382079,0.025,61223.0,61214.0,0.163361]
[1724417382338,0.025,61223.0,61214.0,0.00326689]
[1724417382584,0.163329,61226.0,61215.0,0.16400298]
[1724417382809,0.023,61227.0,61215.0,0.16400298]
[1724417382810,0.023,61227.0,61220.0,0.163344]
[1724417383024,0.023,61227.0,61218.0,0.3267]
[1724417383199,0.023,61227.0,61223.0,0.163334]
[1724417383438,0.239623,61229.0,61222.0,0.163338]
[1724417383439,0.023,61228.0,61222.0,0.163338]
[1724417383852,0.023,61228.0,61220.0,0.163344]
[1724417384059,0.408573,61228.0,61219.0,0.163346]
[1724417384269,0.326654,61227.0,61220.0,0.163343]
[1724417384481,0.163333,61225.0,61219.0,0.163346]
[1724417384686,0.163329,61226.0,61220.0,0.163344]
[1724417384908,0.023,61225.0,61218.0,0.3267]
[1724417385319,0.023,61225.0,61221.0,0.163342]
[1724417385518,0.023,61227.0,61222.0,0.163339]
[1724417385732,0.004,61225.0,61222.0,0.163339]
[1724417385941,0.023,61224.0,61221.0,0.16334]
[1724417386367,0.023,61224.0,61222.0,0.163339]
[1724417387201,0.023,61226.0,61220.0,0.32669]
[1724417387407,0.004,61225.0,61220.0,0.32669]
[1724417387607,0.023,61224.0,61220.0,0.32669]
[1724417387825,0.023,61224.0,61221.0,0.326684]
[1724417388024,0.007,61225.0,61223.0,0.163337]
[1724417388236,0.023,61224.0,61222.0,0.163338]
[1724417388563,0.02561749,61225.0,61222.0,0.163338]
[1724417388777,0.03261749,61225.0,61224.0,0.163334]
[1724417388980,0.02561749,61225.0,61222.0,0.163338]
[1724417389183,0.03261749,61225.0,61221.0,0.16334]
[1724417389388,0.03261749,61225.0,61218.0,0.03]
[1724417389389,0.490042,61219.0,61218.0,0.03]
[1724417389736,0.4981507,61224.0,61202.0,0.326785]
[1724417389737,0.326737,61212.0,61202.0,0.326785]
[1724417389941,0.0602,61218.0,61203.0,0.16400298]
[1724417389942,0.163377,61208.0,61203.0,0.16400298]
[1724417390148,0.163375,61209.0,61203.0,0.32739098]
[1724417390355,0.163377,61208.0,61203.0,0.16400298]
[1724417390560,0.0602,61218.0,61200.0,0.326796]
[1724417390561,0.326707,61217.0,61200.0,0.326796]
[1724417390766,0.163374,61209.0,61203.0,0.163389]
[1724417390967,0.243374,61209.0,61203.0,0.163389]
[1724417391180,0.163378,61208.0,61203.0,0.163389]
[1724417391377,0.08,61209.0,61201.0,0.16400298]
[1724417391378,0.087,61209.0,61204.0,0.163387]
[1724417391583,0.087,61209.0,61197.0,0.0604]
[1724417391584,0.02724485,61208.0,61191.0,0.1374]
[1724417391786,0.02724485,61208.0,61196.0,0.163408]
[1724417391787,0.09161955,61208.0,61196.0,0.163408]
[1724417391997,0.163394,61202.0,61196.0,0.163408]
[1724417392204,0.163393,61202.0,61196.0,0.163408]
[1724417392405,0.163397,61201.0,61195.0,0.16341]
[1724417392611,0.3431317,61201.0,61192.0,0.16400298]
[1724417392821,0.0256268,61200.0,61193.0,0.326833]
[1724417393028,0.1890258,61200.0,61194.0,0.1]
[1724417393231,0.023,61199.0,61194.0,0.263413]
[1724417393568,0.186401,61199.0,61194.0,0.263413]
[1724417393971,0.186401,61199.0,61191.0,0.0622]
[1724417393972,0.163404,61198.0,61191.0,0.0622]
[1724417394217,0.186402,61199.0,61194.0,0.165414]
[1724417394417,0.326813,61197.0,61194.0,0.002]
[1724417394622,0.326813,61197.0,61186.0,0.326867]
[1724417394623,0.163418,61193.0,61186.0,0.326867]
[1724417394798,0.32683,61194.0,61185.0,0.326875]
[1724417394998,0.32683,61194.0,61187.0,0.163432]
[1724417394999,0.18642,61192.0,61187.0,0.163432]
[1724417395176,0.0769,61196.0,61186.0,0.00326837]
[1724417395379,0.02563012,61192.0,61191.0,0.163422]
[1724417395788,0.02563012,61192.0,61191.0,1.06191498]
[1724417396011,0.02563012,61192.0,61191.0,1.38875998]
[1724417396847,0.02563012,61192.0,61191.0,1.48875998]
[1724417397461,0.02663012,61192.0,61191.0,1.49175998]
[1724417397874,0.02763012,61192.0,61191.0,1.49175998]
[1724417398277,0.02663012,61192.0,61191.0,1.49175998]
[1724417398585,0.81905254,61207.0,61200.0,0.163397]
[1724417398834,0.326791,61202.0,61191.0,0.67164798]
[1724417399040,0.023,61206.0,61196.0,0.163406]
[1724417399041,0.163396,61201.0,61196.0,0.163406]
[1724417399240,0.163393,61202.0,61197.0,0.163406]
[1724417400109,0.32840703,61203.0,61194.0,0.326829]
[1724417400261,0.163398,61200.0,61194.0,0.326829]
[1724417400477,0.163398,61200.0,61191.0,0.328845]
[1724417400478,0.0764,61203.0,61191.0,0.165421]
[1724417400692,0.0764,61203.0,61189.0,0.326851]
[1724417400693,0.326804,61199.0,61192.0,0.163419]
[1724417400890,0.163407,61197.0,61192.0,0.163419]
[1724417401095,0.326757,61208.0,61188.0,0.326859]
[1724417401294,0.163399,61200.0,61194.0,0.163412]
[1724417401540,0.023,61199.0,61190.0,0.00326802]
[1724417401795,0.001,61199.0,61198.0,0.163404]
[1724417402113,0.001,61199.0,61197.0,0.163406]
[1724417402321,0.02962749,61199.0,61197.0,0.163406]
[1724417402590,0.02962749,61199.0,61195.0,0.326821]
[1724417402591,0.02662749,61199.0,61195.0,0.326821]
[1724417402797,0.02662749,61199.0,61196.0,0.163408]
[1724417402995,0.02662749,61199.0,61197.0,0.163405]
[1724417403204,0.02562749,61199.0,61198.0,0.163404]
[1724417403612,0.02562749,61199.0,61198.0,0.490212]
[1724417404534,0.02962749,61199.0,61198.0,0.81902]
[1724417404908,0.243278,61208.0,61202.0,0.326784]
[1724417405130,0.023,61207.0,61204.0,0.163387]
[1724417405308,0.023,61207.0,61206.0,0.490147]
[1724417405507,0.04862541,61207.0,61206.0,0.490147]
[1724417405785,0.02562541,61207.0,61206.0,0.490147]
[1724417406528,0.02962541,61207.0,61206.0,0.490147]
[1724417406926,0.02962541,61207.0,61206.0,1.000112]
[1724417407787,0.02562541,61207.0,61206.0,1.000112]
[1724417408209,0.02762541,61207.0,61206.0,1.003112]
[1724417408412,0.02562541,61207.0,61206.0,0.919912]
[1724417408816,0.02562541,61207.0,61206.0,0.922912]
[1724417410788,0.02562541,61207.0,61206.0,1.41367998]
[1724417410992,0.02562541,61207.0,61206.0,1.08691498]
[1724417411401,0.02562541,61207.0,61206.0,1.41367998]
[1724417411879,0.02562541,61207.0,61206.0,1.08691498]
[1724417412501,0.18900541,61207.0,61206.0,0.006]
[1724417412721,0.23899695,61207.0,61202.0,0.163391]
[1724417412935,0.023,61206.0,61200.0,0.326793]
[1724417413131,0.0896,61206.0,61191.0,0.05490724]
[1724417413331,0.163391,61203.0,61198.0,0.163402]
[1724417413569,0.0896,61206.0,61197.0,0.326809]
[1724417413768,0.023,61206.0,61198.0,0.16400298]
[1724417414124,0.023,61206.0,61204.0,0.163385]
[1724417414539,0.02929004,61205.0,61196.0,0.163408]
[1724417414735,0.32679,61202.0,61189.0,0.14822414]
[1724417415107,0.023,61201.0,61190.0,0.16400298]
[1724417415332,0.023,61201.0,61185.0,0.21166214]
[1724417415333,0.163424,61191.0,61185.0,0.21166214]
[1724417415539,0.163418,61193.0,61187.0,0.00685173]
[1724417415745,0.063,61198.0,61182.0,0.32689]
[1724417415746,0.023,61192.0,61182.0,0.32689]
[1724417415952,0.023,61192.0,61186.0,0.163434]
[1724417416168,0.023,61192.0,61189.0,0.163427]
[1724417416379,0.023,61194.0,61183.0,0.16400298]
[1724417416580,0.163416,61194.0,61188.0,0.16343]
[1724417416786,0.023,61195.0,61190.0,0.02616029]
[1724417416787,0.02562981,61192.0,61190.0,0.02616029]
[1724417416998,0.02662981,61192.0,61188.0,0.16343]
[1724417417213,0.023,61191.0,61189.0,0.02616941]
[1724417417409,0.023,61191.0,61188.0,0.16343]
[1724417417625,0.02562981,61192.0,61189.0,0.1]
[1724417417839,0.001,61191.0,61190.0,0.163424]
[1724417418050,0.02562981,61192.0,61190.0,0.163424]
[1724417418457,0.02562981,61192.0,61191.0,0.163422]
[1724417418668,0.04862981,61192.0,61191.0,0.490267]
[1724417418873,0.02562981,61192.0,61191.0,0.490267]
[1724417419305,0.02562981,61192.0,61191.0,0.817112]
[1724417419508,0.02562981,61192.0,61191.0,0.490267]
[1724417419690,0.02562981,61192.0,61191.0,0.817112]
[1724417420147,0.02562981,61192.0,61191.0,1.41251115]
[1724417420791,0.02662981,61192.0,61191.0,1.41851115]
[1724417421206,0.02662981,61192.0,61191.0,1.01326615]
[1724417421626,0.02662981,61192.0,61191.0,1.34011115]
[1724417421836,0.02762981,61192.0,61191.0,1.34511115]
[1724417422689,0.02762981,61192.0,61191.0,1.44511115]
[1724417423330,0.02662981,61192.0,61191.0,1.43911115]
[1724417424128,0.02662981,61192.0,61191.0,1.44011115]
[1724417424337,0.02662981,61192.0,61191.0,1.44511115]
[1724417424868,0.02662981,61192.0,61191.0,1.44011115]
[1724417425072,0.02762981,61192.0,61191.0,1.44611115]
[1724417425692,0.02662981,61192.0,61191.0,1.44011115]
[1724417425913,0.02662981,61192.0,61191.0,1.44611115]
[1724417426115,0.02762981,61192.0,61191.0,1.11926615]
[1724417427055,0.02762981,61192.0,61191.0,0.20215415]
[1724417427255,0.02762981,61192.0,61191.0,0.03815117]
[1724417427460,0.02762981,61192.0,61191.0,0.85526317]
[1724417427659,0.02762981,61192.0,61191.0,0.52841817]
[1724417428082,0.02762981,61192.0,61191.0,1.42631115]
[1724417428282,0.02762981,61192.0,61191.0,1.52631115]
[1724417431725,0.02762981,61192.0,61191.0,1.59897925]
[1724417433001,0.02662981,61192.0,61191.0,1.59297925]
[1724417433202,0.02762981,61192.0,61191.0,1.60097925]
[1724417433635,0.02662981,61192.0,61191.0,1.59297925]
[1724417433810,0.02662981,61192.0,61191.0,1.58697925]
[1724417433811,0.02562981,61192.0,61191.0,1.58697925]
[1724417434156,0.02662981,61192.0,61191.0,1.59697925]
[1724417435238,0.02762981,61192.0,61191.0,1.60697925]
[1724417435652,0.02762981,61192.0,61191.0,1.6553689]
[1724417436029,0.02762981,61192.0,61191.0,1.9822139]
[1724417436863,0.02762981,61192.0,61191.0,1.9020139]
[1724417437499,0.02794981,61192.0,61191.0,1.9020139]
[1724417438199,0.02794981,61192.0,61191.0,1.85362425]
[1724417438405,0.02794981,61192.0,61191.0,1.5752767]
[1724417439166,0.02794981,61192.0,61191.0,1.9021217]
[1724417439416,0.02794981,61192.0,61191.0,1.92620872]
[1724417439817,0.02794981,61192.0,61191.0,2.28864601]
[1724417442408,0.02794981,61192.0,61191.0,2.21606154]
[1724417442541,0.02794981,61192.0,61191.0,2.28883527]
[1724417443120,1e-08,61192.0,61191.0,2.63287005]
[1724417443557,1e-08,61192.0,61191.0,2.62070654]
[1724417443768,1e-08,61192.0,61191.0,2.63286854]
[1724417443973,1e-08,61192.0,61191.0,2.61286854]
[1724417444183,0.00100001,61192.0,61191.0,2.62686854]
[1724417444383,0.00100001,61192.0,61191.0,2.26443125]
[1724417444586,0.00100001,61192.0,61191.0,2.62680798]
[1724417445616,0.00100001,61192.0,61191.0,2.62780798]
[1724417445864,0.00100001,61192.0,61191.0,2.30896298]
[1724417446089,0.00100001,61192.0,61191.0,1.51683642]
[1724417446288,0.00100001,61192.0,61191.0,1.45837925]
[1724417446494,0.00100001,61192.0,61191.0,1.47237925]
[1724417447087,0.00100001,61192.0,61191.0,1.45837925]
[1724417447340,1e-08,61192.0,61191.0,1.44437925]
[1724417447972,1e-08,61192.0,61191.0,1.45837925]
[1724417448194,1e-08,61192.0,61191.0,1.44437925]
[1724417448544,1e-08,61192.0,61191.0,1.47037925]
[1724417448751,1e-08,61192.0,61191.0,1.45837925]
[1724417448994,1e-08,61192.0,61191.0,1.44437925]
[1724417449215,0.08270001,61192.0,61191.0,1.01753425]
[1724417449498,0.10570001,61192.0,61191.0,0.04941927]
[1724417450149,0.10570001,61192.0,61191.0,0.03641927]
[1724417450350,0.26912001,61192.0,61191.0,0.05941927]
[1724417450550,0.26912001,61192.0,61191.0,0.0332681]
[1724417450829,0.26912001,61192.0,61191.0,0.04793594]
[1724417451000,0.59596001,61192.0,61191.0,0.014]
[1724417451737,0.59596001,61192.0,61191.0,0.003]
[1724417451935,0.26912001,61192.0,61191.0,0.003]
[1724417452360,0.59596001,61192.0,61191.0,0.03993594]
[1724417452653,0.67203099,61192.0,61191.0,0.007]
[1724417452794,0.73343099,61192.0,61191.0,0.04393594]
[1724417453000,1.06027099,61192.0,61191.0,0.007]
[1724417453236,1.06027099,61192.0,61191.0,0.04393594]
[1724417453515,1.06027099,61192.0,61191.0,0.007]
[1724417453924,1.06027099,61192.0,61191.0,0.004]
[1724417454079,1.06027099,61192.0,61191.0,0.005]
[1724417454554,1.06027099,61192.0,61191.0,0.004]
[1724417454720,0.0772,61185.0,61181.0,0.163448]
[1724417454924,0.023,61184.0,61180.0,0.17024234]
[1724417455129,1e-08,61192.0,61183.0,0.326888]
[1724417455336,1e-08,61192.0,61191.0,0.490267]
[1724417455337,0.02300001,61192.0,61191.0,0.490267]
[1724417455492,1e-08,61192.0,61191.0,0.819112]
[1724417455696,1e-08,61192.0,61191.0,0.85604794]
[1724417455902,1e-08,61192.0,61191.0,0.85704794]
[1724417455903,0.00200001,61192.0,61191.0,0.85704794]
[1724417456128,0.00200001,61192.0,61191.0,0.52820294]
[1724417456332,0.00200001,61192.0,61191.0,0.85504794]
[1724417456703,0.00200001,61192.0,61191.0,0.03793594]
[1724417456902,0.07760001,61192.0,61191.0,0.03793594]
[1724417457353,0.07760001,61192.0,61191.0,0.03693594]
[1724417457354,0.28764967,61192.0,61191.0,0.03693594]
[1724417457565,0.05062967,61192.0,61191.0,0.491267]
[1724417457769,0.02762967,61192.0,61191.0,0.491267]
[1724417457987,0.02762967,61192.0,61191.0,0.52798955]
[1724417457988,0.02562967,61192.0,61191.0,0.52798955]
[1724417458184,0.02762967,61192.0,61191.0,0.85583455]
[1724417458445,0.02762967,61192.0,61191.0,0.52898955]
[1724417458667,0.02562967,61192.0,61191.0,0.52798955]
[1724417458867,0.02762967,61192.0,61191.0,0.52798955]
[1724417460092,0.02762967,61192.0,61191.0,0.85483455]
[1724417460298,0.02762967,61192.0,61191.0,0.52798955]
[1724417460687,0.02762967,61192.0,61191.0,1.16273753]
[1724417460891,0.02762967,61192.0,61191.0,1.08493753]
[1724417461206,0.02762967,61192.0,61191.0,1.41178253]
[1724417461341,0.02762967,61192.0,61191.0,1.46026595]
[1724417461559,0.02562967,61192.0,61191.0,1.46023666]
[1724417461975,0.02562967,61192.0,61191.0,1.41578253]
[1724417462179,0.02562967,61192.0,61191.0,1.41178253]
[1724417462591,0.02562967,61192.0,61191.0,1.42678253]
[1724417463002,0.02562967,61192.0,61191.0,2.00895266]
[1724417463205,0.0771,61216.0,61213.0,0.163363]
[1724417463423,0.0771,61216.0,61214.0,0.03750896]
[1724417463643,0.0771,61216.0,61213.0,0.163362]
[1724417463825,0.0771,61216.0,61212.0,0.163365]
[1724417464531,0.0771,61216.0,61213.0,0.03751824]
[1724417464754,0.023,61215.0,61214.0,0.163361]
[1724417465273,0.023,61215.0,61214.0,0.03750896]
[1724417465705,0.023,61215.0,61212.0,0.163365]
[1724417465914,0.023,61215.0,61214.0,0.03750896]
[1724417466109,0.023,61215.0,61213.0,0.03751824]
[1724417466317,0.023,61215.0,61212.0,0.163366]
[1724417466542,0.023,61215.0,61214.0,0.03750896]
[1724417466749,0.023,61215.0,61213.0,0.03751824]
[1724417466959,0.023,61215.0,61207.0,0.00681511]
[1724417466960,0.023,61220.0,61214.0,0.36423096]
[1724417467090,0.023,61220.0,61216.0,0.163354]
[1724417467295,0.023,61220.0,61217.0,0.163351]
[1724417467493,0.023,61221.0,61217.0,0.20083211]
[1724417467940,0.186343,61221.0,61217.0,0.20083211]
[1724417468250,0.023,61221.0,61218.0,0.16335]
[1724417468519,0.023,61221.0,61218.0,0.20082183]
[1724417468641,0.0486199,61221.0,61219.0,0.163347]
[1724417468849,0.0486199,61221.0,61220.0,0.163345]
[1724417469217,0.0486199,61221.0,61220.0,0.20079827]
[1724417470732,0.0486199,61221.0,61220.0,0.03745327]
[1724417470965,0.0486199,61221.0,61220.0,0.03845327]
[1724417471177,0.07976863,61221.0,61220.0,0.03945327]
[1724417471555,0.0256199,61221.0,61220.0,0.52948827]
[1724417471790,0.0256199,61221.0,61220.0,1.41337125]
[1724417472350,0.0256199,61221.0,61220.0,1.41137125]
[1724417473636,0.0256199,61221.0,61220.0,1.41237125]
[1724417474860,0.0256199,61221.0,61220.0,1.34487125]
[1724417475062,0.0256199,61221.0,61220.0,1.01818125]
[1724417475235,0.0256199,61221.0,61220.0,1.02318125]
[1724417475439,0.0256199,61221.0,61220.0,0.53248827]
[1724417475670,0.0486199,61221.0,61220.0,0.04245327]
[1724417475891,0.0486199,61221.0,61220.0,0.03745327]
[1724417476100,0.2119619,61221.0,61220.0,0.03745327]
[1724417476305,0.320716,61221.0,61220.0,0.007]
[1724417476507,0.647401,61221.0,61220.0,0.007]
[1724417476720,0.320716,61221.0,61220.0,0.007]
[1724417476923,0.647401,61221.0,61220.0,0.012]
[1724417477126,0.647401,61221.0,61220.0,0.007]
[1724417477533,0.647401,61221.0,61220.0,0.001]
[1724417477735,0.6147499,61221.0,61220.0,0.001]
[1724417477911,0.2880649,61221.0,61220.0,0.003]
[1724417478047,0.1247199,61221.0,61220.0,0.003]
[1724417478251,0.1247199,61221.0,61220.0,0.20379827]
[1724417479088,0.1017199,61221.0,61220.0,0.20379827]
[1724417479309,0.1017199,61221.0,61220.0,0.85717827]
[1724417479473,0.0256199,61221.0,61220.0,0.85717827]
[1724417479916,0.0256199,61221.0,61220.0,1.49237125]
[1724417480691,0.0256199,61221.0,61220.0,1.49037125]
[1724417480933,0.0256199,61221.0,61220.0,1.49237125]
[1724417481549,0.0256199,61221.0,61220.0,1.49037125]
[1724417481712,0.0256199,61221.0,61220.0,1.49537125]
[1724417482252,0.0256199,61221.0,61220.0,1.41407125]
[1724417482470,0.0256199,61221.0,61220.0,1.35087125]
[1724417484169,0.0256199,61221.0,61220.0,1.34987125]
[1724417484695,0.0256199,61221.0,61220.0,1.75246125]
[1724417485406,0.0256199,61221.0,61220.0,1.74746125]
[1724417485649,0.0256199,61221.0,61220.0,1.75846125]
[1724417486076,0.0256199,61221.0,61220.0,1.75746125]
[1724417486295,0.0256199,61221.0,61220.0,1.82986125]
[1724417486507,0.4282,61225.0,61224.0,1.74870198]
[1724417486723,0.4282,61225.0,61224.0,1.91270496]
[1724417486928,0.4282,61225.0,61224.0,2.01270496]
[1724417488040,0.4282,61225.0,61224.0,2.02370496]
[1724417488444,0.4282,61225.0,61224.0,2.01270496]
[1724417488671,0.45381573,61225.0,61224.0,2.01270496]
[1724417489111,0.45381573,61225.0,61224.0,2.02170496]
[1724417489520,0.45381573,61225.0,61224.0,2.0394138]
[1724417489731,0.45381573,61225.0,61224.0,2.02970496]
[1724417489934,0.45381573,61225.0,61224.0,2.02170496]
[1724417490149,0.45381573,61225.0,61224.0,2.03941382]
[1724417490353,0.45381573,61225.0,61224.0,2.05041382]
[1724417490555,0.45381573,61225.0,61224.0,2.04141382]
[1724417490776,0.45381573,61225.0,61224.0,2.05341382]
[1724417490954,0.45381573,61225.0,61224.0,1.89007982]
[1724417491201,0.45381573,61225.0,61224.0,2.05341382]
[1724417491403,0.45381573,61225.0,61224.0,2.44908282]
[1724417491604,0.33426363,61225.0,61224.0,2.44908282]
[1724417491718,0.30883401,61225.0,61224.0,2.44908282]
[1724417491919,0.30883401,61225.0,61224.0,2.48649897]
[1724417492116,0.30883401,61225.0,61224.0,2.80116797]
[1724417492460,0.16383401,61225.0,61224.0,2.80216797]
[1724417492669,0.16383401,61225.0,61224.0,2.80416797]
[1724417492861,0.13821828,61225.0,61224.0,2.81816797]
[1724417493073,0.0002,61239.0,61238.0,1.612673]
[1724417493276,0.0002,61239.0,61238.0,1.89638484]
[1724417493693,0.0002,61239.0,61238.0,2.22297884]
[1724417493924,0.0002,61239.0,61238.0,2.22497884]
[1724417494328,0.0002,61239.0,61238.0,2.22297884]
[1724417494528,0.02580372,61239.0,61238.0,1.89438484]
[1724417494737,0.02580372,61239.0,61238.0,1.89338484]
[1724417494876,0.02580372,61239.0,61238.0,1.51046824]
[1724417495483,0.02580372,61239.0,61238.0,1.52446824]
[1724417495688,0.02580372,61239.0,61238.0,1.53846824]
[1724417495884,0.02580372,61239.0,61238.0,1.45836824]
[1724417496113,0.02580372,61239.0,61238.0,1.12460756]
[1724417496267,0.02580372,61239.0,61238.0,0.49941956]
[1724417496482,0.02580372,61239.0,61238.0,0.82601356]
[1724417496678,0.02580372,61239.0,61238.0,0.81918024]
[1724417496929,0.02580372,61239.0,61238.0,1.14577424]
[1724417498417,0.02580372,61239.0,61238.0,0.22928924]
[1724417498652,0.02580372,61239.0,61238.0,0.32928924]
[1724417499060,0.02580372,61239.0,61238.0,0.06528626]
[1724417499266,0.02580372,61239.0,61238.0,0.05128626]
[1724417500123,0.02580372,61239.0,61238.0,0.22358326]
[1724417500307,0.02580372,61239.0,61238.0,1.04077424]
[1724417501294,0.02580372,61239.0,61238.0,1.03177424]
[1724417502539,0.02580372,61239.0,61238.0,1.03277424]
[1724417502983,0.02580372,61239.0,61238.0,0.70618024]
[1724417503214,1.34546634,61239.0,61238.0,0.05228626]
[1724417503423,1.33376472,61239.0,61238.0,0.05228626]
[1724417503634,1.33376472,61239.0,61238.0,0.015]
[1724417504647,1.33376472,61239.0,61238.0,0.014]
[1724417504821,1.33376472,61239.0,61238.0,0.015]
[1724417505558,1.4977435,61239.0,61238.0,0.015]
[1724417505776,1.33376472,61239.0,61238.0,0.015]